bitfinex/quotes_BTCUSD_20251217
["timestamp","ask_amount","ask_price","bid_price","bid_amount"]
[1765965541620,0.01082104,86568.0,86558.0,0.00261287]
[1765965541876,0.01082104,86568.0,86558.0,0.00161287]
[1765965542280,0.2907,86569.0,86558.0,0.00161287]
[1765965542687,0.03473466,86576.0,86558.0,0.00161287]
[1765965542848,0.0108173,86575.0,86559.0,0.0544683]
[1765965543060,0.0108173,86575.0,86559.0,0.05608117]
[1765965543285,0.0108173,86574.0,86559.0,0.05608117]
[1765965543488,0.0108173,86573.0,86559.0,0.05608117]
[1765965543651,0.0108173,86572.0,86559.0,0.05608117]
[1765965543885,0.0108173,86571.0,86560.0,0.06127075]
[1765965544081,0.0347345,86577.0,86560.0,0.06288362]
[1765965544287,0.01081229,86576.0,86560.0,0.06288362]
[1765965545314,0.01081229,86576.0,86560.0,0.06388362]
[1765965545485,0.01081229,86576.0,86560.0,0.00261287]
[1765965545893,0.01081229,86576.0,86568.0,0.0008899]
[1765965546092,0.01081229,86576.0,86560.0,0.00261287]
[1765965546626,0.01081229,86576.0,86560.0,0.00161287]
[1765965546627,0.01081229,86575.0,86560.0,0.00161287]
[1765965546851,0.01081229,86575.0,86561.0,0.0279887]
[1765965547052,0.01081229,86575.0,86561.0,0.02960157]
[1765965547387,0.01081229,86575.0,86561.0,0.04115411]
[1765965547595,0.01081229,86574.0,86563.0,0.01155227]
[1765965547876,0.01824,86581.0,86565.0,0.01155201]
[1765965548052,0.2907,86579.0,86565.0,0.01316488]
[1765965549149,0.2907,86579.0,86565.0,0.00161287]
[1765965549341,0.01824,86581.0,86565.0,0.00161287]
[1765965549665,0.01080862,86580.0,86565.0,0.00161287]
[1765965549981,0.01080862,86580.0,86566.0,0.11491815]
[1765965550216,0.2907,86588.0,86566.0,0.15126045]
[1765965550392,0.01080901,86587.0,86566.0,0.15126045]
[1765965550604,0.01080901,86587.0,86566.0,0.11653102]
[1765965550903,0.01080901,86587.0,86567.0,0.10106211]
[1765965551205,0.01080901,86587.0,86567.0,0.10267498]
[1765965551420,0.01080901,86587.0,86575.0,0.00066737]
[1765965551625,0.01080901,86587.0,86567.0,0.10267498]
[1765965551845,0.01080901,86587.0,86575.0,0.00161287]
[1765965552618,0.02235808,86587.0,86575.0,0.00161287]
[1765965552820,0.01080901,86586.0,86575.0,0.00161287]
[1765965553045,0.01080901,86585.0,86575.0,0.00161287]
[1765965553246,0.01080901,86584.0,86575.0,0.00161287]
[1765965553453,0.01080901,86583.0,86575.0,0.00161287]
[1765965553657,0.01154894,86588.0,86575.0,0.00161287]
[1765965553852,0.01081095,86587.0,86575.0,0.00161287]
[1765965554057,0.01081095,86587.0,86575.0,0.00261287]
[1765965554368,0.01081095,86587.0,86575.0,0.00161287]
[1765965554568,0.01081095,86587.0,86575.0,0.00261287]
[1765965555102,0.01081095,86587.0,86575.0,0.00161287]
[1765965555317,0.01081095,86586.0,86575.0,0.00161287]
[1765965555526,0.01081095,86585.0,86575.0,0.00161287]
[1765965555650,0.01081095,86584.0,86575.0,0.00161287]
[1765965555873,0.01081095,86583.0,86575.0,0.00161287]
[1765965556086,0.2907,86589.0,86575.0,0.00161287]
[1765965556305,0.01081156,86588.0,86575.0,0.00161287]
[1765965556715,0.01081156,86588.0,86575.0,0.00261287]
[1765965556949,0.01081156,86588.0,86586.0,0.00031776]
[1765965557152,0.01081156,86588.0,86575.0,0.00161287]
[1765965559207,0.0223605,86588.0,86575.0,0.00161287]
[1765965559340,0.01081156,86587.0,86575.0,0.00161287]
[1765965559957,0.02236063,86587.0,86575.0,0.00161287]
[1765965560163,0.31306077,86586.0,86575.0,0.00161287]
[1765965560375,0.01081156,86585.0,86575.0,0.00161287]
[1765965561178,0.03549156,86585.0,86576.0,0.02746]
[1765965561373,0.01081156,86584.0,86577.0,0.01470006]
[1765965563099,0.01081156,86584.0,86577.0,0.04216006]
[1765965563303,0.01081156,86584.0,86577.0,0.04316006]
[1765965563504,0.01081156,86584.0,86583.0,0.0004131]
[1765965565048,0.01081156,86584.0,86583.0,0.0014131]
[1765965567673,0.01081156,86584.0,86578.0,0.01818929]
[1765965569390,0.01081156,86584.0,86578.0,0.01918929]
[1765965577045,0.01081156,86584.0,86580.0,0.05041]
[1765965577291,0.01081156,86584.0,86579.0,0.02486]
[1765965577465,0.01081156,86584.0,86580.0,0.01895653]
[1765965577853,0.01081156,86584.0,86583.0,0.07527]
[1765965578082,0.01081156,86584.0,86583.0,0.05861]
[1765965578293,0.01081156,86588.0,86583.0,0.05861]
[1765965579119,0.01081156,86588.0,86583.0,0.001]
[1765965579415,0.02335,86587.0,86583.0,0.001]
[1765965579579,0.01081156,86586.0,86583.0,0.001]
[1765965579778,0.01081156,86586.0,86581.0,0.02186]
[1765965580684,0.02236077,86586.0,86581.0,0.0086906]
[1765965580867,0.0223609,86585.0,86581.0,0.0086906]
[1765965581073,0.35461,86583.0,86577.0,0.01111316]
[1765965581281,0.02298,86581.0,86577.0,0.01111316]
[1765965581503,0.01081156,86580.0,86577.0,0.01111316]
[1765965582370,0.01081156,86580.0,86577.0,0.01211316]
[1765965582570,0.01081156,86580.0,86574.0,0.02486]
[1765965583361,0.01081156,86580.0,86577.0,0.001]
[1765965583767,0.01081156,86580.0,86574.0,0.02486]
[1765965583984,0.01081156,86580.0,86575.0,0.05227712]
[1765965584180,0.01361,86583.0,86577.0,0.05141]
[1765965584181,0.01081156,86579.0,86577.0,0.05141]
[1765965584382,0.01081156,86578.0,86577.0,0.05141]
[1765965584528,0.01081156,86582.0,86577.0,0.05141]
[1765965584730,0.01081156,86581.0,86577.0,0.05141]
[1765965584925,0.01081156,86580.0,86577.0,0.05041]
[1765965585159,0.01081156,86579.0,86578.0,0.08834608]
[1765965585646,0.01081156,86583.0,86578.0,0.08834608]
[1765965585852,0.01081156,86583.0,86578.0,0.08995895]
[1765965587399,0.01081156,86583.0,86578.0,0.09095895]
[1765965587595,0.01081156,86583.0,86578.0,0.08995895]
[1765965587756,0.01081156,86583.0,86579.0,0.01150732]
[1765965588772,0.01081156,86583.0,86579.0,0.06191732]
[1765965588991,0.01081156,86582.0,86579.0,0.06191732]
[1765965589254,0.01081156,86581.0,86579.0,0.06191732]
[1765965589497,0.01081156,86580.0,86579.0,0.06191732]
[1765965589858,0.01081156,86586.0,86579.0,0.06191732]
[1765965590056,0.03308156,86585.0,86580.0,0.01265805]
[1765965590369,0.01081156,86584.0,86580.0,0.01265805]
[1765965591374,0.01081156,86584.0,86575.0,0.00025425]
[1765965591375,0.09869,86576.0,86575.0,0.00025425]
[1765965591595,0.10950156,86576.0,86575.0,0.00025425]
[1765965591797,0.02407156,86576.0,86575.0,0.00025425]
[1765965592109,0.01081156,86576.0,86575.0,0.00025425]
[1765965592521,0.01081156,86576.0,86575.0,0.00186712]
[1765965592721,0.01083348,86577.0,86576.0,0.08416]
[1765965592965,0.01083364,86581.0,86580.0,0.02486]
[1765965593141,0.01083366,86581.0,86580.0,0.02486]
[1765965594091,0.01083366,86581.0,86580.0,0.02586]
[1765965594315,0.01083366,86584.0,86580.0,0.02686]
[1765965594519,0.01083366,86583.0,86580.0,0.03861718]
[1765965594736,0.01083366,86582.0,86580.0,0.03861718]
[1765965594948,0.01083366,86581.0,86580.0,0.03861718]
[1765965595452,0.01083366,86584.0,86580.0,0.03761718]
[1765965595614,0.32048894,86588.0,86580.0,0.03661718]
[1765965595615,0.01083366,86583.0,86580.0,0.03661718]
[1765965595859,0.01083366,86582.0,86581.0,0.01137543]
[1765965596212,0.0129,86582.0,86576.0,0.00161287]
[1765965596404,0.0503,86580.0,86576.0,0.00161287]
[1765965596558,0.02391366,86579.0,86576.0,0.00161287]
[1765965596811,0.01083366,86578.0,86576.0,0.00161287]
[1765965597032,0.01083366,86578.0,86572.0,0.02072712]
[1765965597183,0.01083366,86578.0,86572.0,0.03463683]
[1765965597386,0.01083366,86578.0,86576.0,0.001]
[1765965598069,0.01083366,86578.0,86576.0,0.002]
[1765965598844,0.01083366,86578.0,86576.0,0.001]
[1765965599827,0.01083366,86578.0,86576.0,0.002]
[1765965601893,0.37613,86577.0,86576.0,0.002]
[1765965602216,0.68876099,86577.0,86576.0,0.002]
[1765965602775,0.68876099,86577.0,86576.0,0.001]
[1765965602992,0.68876099,86577.0,86576.0,0.002]
[1765965603195,0.68876099,86577.0,86576.0,0.001]
[1765965603662,0.2907,86569.0,86557.0,0.05041]
[1765965603847,0.01083366,86568.0,86557.0,0.05041]
[1765965604204,0.01083366,86568.0,86567.0,0.0002543]
[1765965606157,0.01083366,86570.0,86567.0,0.0012543]
[1765965606336,0.01083366,86569.0,86567.0,0.0012543]
[1765965606545,0.01083366,86568.0,86567.0,0.0022543]
[1765965606743,0.01083366,86570.0,86567.0,0.0022543]
[1765965607284,0.01083366,86570.0,86567.0,0.0012543]
[1765965607703,0.01083366,86570.0,86567.0,0.0022543]
[1765965607964,0.01083366,86570.0,86567.0,0.0012543]
[1765965608835,0.02271366,86570.0,86567.0,0.0022543]
[1765965609036,0.01188,86570.0,86567.0,0.0022543]
[1765965609261,0.01188,86570.0,86567.0,0.0012543]
[1765965609462,0.05851,86570.0,86567.0,0.0022543]
[1765965609669,0.0792,86568.0,86567.0,0.0022543]
[1765965610113,0.2907,86569.0,86567.0,0.0022543]
[1765965610510,0.2907,86569.0,86567.0,0.0012543]
[1765965610713,0.01188,86570.0,86567.0,0.0012543]
[1765965610938,0.3699,86568.0,86567.0,0.0022543]
[1765965611149,0.61174762,86568.0,86567.0,0.0012543]
[1765965611358,0.61174762,86568.0,86567.0,0.0002543]
[1765965611558,0.61174762,86568.0,86567.0,0.0012543]
[1765965611862,0.61174762,86568.0,86567.0,0.0022543]
[1765965612424,0.61174762,86568.0,86567.0,0.0012543]
[1765965612645,0.61174762,86568.0,86567.0,0.0002543]
[1765965612870,0.61174762,86568.0,86567.0,0.0012543]
[1765965612871,0.7272084,86568.0,86567.0,0.0012543]
[1765965613007,0.7272084,86568.0,86567.0,0.0022543]
[1765965613008,0.7454484,86568.0,86567.0,0.0022543]
[1765965613219,0.7711384,86568.0,86567.0,0.0002543]
[1765965613616,0.7711384,86568.0,86567.0,0.0012543]
[1765965613862,0.65567762,86568.0,86567.0,0.0012543]
[1765965614066,0.01155334,86555.0,86548.0,0.0199443]
[1765965614263,0.2907,86555.0,86548.0,0.0199443]
[1765965615266,0.32324321,86556.0,86548.0,0.0219443]
[1765965615622,0.2907,86556.0,86549.0,0.02569]
[1765965615816,0.2907,86556.0,86555.0,0.10741]
[1765965616448,0.01155241,86562.0,86555.0,0.10741]
[1765965616449,0.2907,86562.0,86555.0,0.10741]
[1765965616648,0.2907,86562.0,86561.0,0.10741]
[1765965616808,0.24258743,86567.0,86563.0,0.04893]
[1765965617158,0.24258743,86567.0,86555.0,0.039]
[1765965617159,0.03257,86556.0,86555.0,0.002]
[1765965617357,0.31026428,86556.0,86555.0,0.002]
[1765965617599,0.01188,86554.0,86548.0,0.002]
[1765965617803,0.02343348,86554.0,86548.0,0.002]
[1765965617939,0.23108297,86549.0,86548.0,0.002]
[1765965618147,0.23108297,86549.0,86542.0,0.02569]
[1765965618148,0.02451,86549.0,86542.0,0.02569]
[1765965618373,0.01155308,86557.0,86543.0,0.04893]
[1765965618750,0.24261506,86557.0,86543.0,0.04893]
[1765965618952,0.24261402,86558.0,86543.0,0.04893]
[1765965619174,0.24261402,86558.0,86548.0,0.003]
[1765965619391,0.01155321,86556.0,86548.0,0.05193]
[1765965619799,0.24262029,86555.0,86554.0,0.0004133]
[1765965619972,0.32182029,86555.0,86554.0,0.0004133]
[1765965620218,0.27519029,86555.0,86554.0,0.0004133]
[1765965620988,0.32182029,86555.0,86554.0,0.0004133]
[1765965621703,0.32182029,86555.0,86554.0,0.0024133]
[1765965622293,0.32182029,86555.0,86554.0,0.0044133]
[1765965624426,0.24262029,86555.0,86554.0,0.0044133]
[1765965625771,0.53332029,86555.0,86554.0,0.0044133]
[1765965630164,0.61252029,86555.0,86554.0,0.0044133]
[1765965630707,0.62331691,86555.0,86554.0,0.0044133]
[1765965631523,0.62331932,86555.0,86554.0,0.0044133]
[1765965631935,0.64538932,86555.0,86554.0,0.0044133]
[1765965636477,0.35613903,86555.0,86554.0,0.0024133]
[1765965636697,0.30149903,86555.0,86554.0,0.0024133]
[1765965636901,0.30149903,86555.0,86554.0,0.0860533]
[1765965637250,0.30149903,86555.0,86554.0,0.0355733]
[1765965637452,0.30149903,86555.0,86554.0,0.0024133]
[1765965637668,0.30149903,86555.0,86554.0,0.0044133]
[1765965637866,0.53256598,86555.0,86554.0,0.0044133]
[1765965640429,0.61212598,86555.0,86554.0,0.0044133]
[1765965640680,0.56602598,86555.0,86554.0,0.0044133]
[1765965641003,0.61212598,86555.0,86554.0,0.0044133]
[1765965641432,0.42420146,86555.0,86554.0,0.0044133]
[1765965641606,0.04425903,86555.0,86554.0,0.0044133]
[1765965642042,0.01079903,86555.0,86554.0,0.0044133]
[1765965642182,0.01079903,86556.0,86554.0,0.0044133]
[1765965642380,0.01079903,86555.0,86554.0,0.004]
[1765965642797,0.01079903,86556.0,86554.0,0.004]
[1765965643140,0.01079903,86555.0,86554.0,0.004]
[1765965643337,0.01079903,86556.0,86554.0,0.004]
[1765965643501,0.01079903,86556.0,86547.0,0.05048]
[1765965643698,0.02235224,86556.0,86554.0,0.002]
[1765965643944,0.01079903,86555.0,86554.0,0.002]
[1765965644160,0.01079903,86555.0,86547.0,0.05048]
[1765965644380,0.01079903,86554.0,86548.0,0.010076]
[1765965644583,0.01079903,86553.0,86548.0,0.010076]
[1765965644729,0.01079903,86552.0,86548.0,0.010076]
[1765965644936,0.01079903,86551.0,86548.0,0.010076]
[1765965645138,0.01079903,86550.0,86549.0,0.0085146]
[1765965645316,0.01079903,86553.0,86549.0,0.0085146]
[1765965645522,0.01079903,86552.0,86549.0,0.0085146]
[1765965645761,0.01079903,86551.0,86549.0,0.0085146]
[1765965645958,0.2907,86557.0,86549.0,0.0085146]
[1765965646277,0.01082057,86556.0,86549.0,0.0085146]
[1765965646477,0.01082057,86556.0,86549.0,0.0105146]
[1765965647217,0.01082057,86556.0,86549.0,0.0351046]
[1765965647634,0.01082057,86556.0,86555.0,0.0003815]
[1765965648245,0.01082057,86558.0,86555.0,0.0003815]
[1765965648468,0.01082057,86557.0,86550.0,0.01101746]
[1765965648696,0.01082057,86556.0,86550.0,0.01101746]
[1765965648870,0.01082057,86555.0,86550.0,0.01101746]
[1765965649030,0.01082057,86554.0,86550.0,0.01101746]
[1765965649230,0.01082057,86553.0,86550.0,0.01101746]
[1765965649463,0.01082057,86552.0,86550.0,0.01101746]
[1765965649612,0.31266,86559.0,86550.0,0.01101746]
[1765965649613,0.01082057,86551.0,86550.0,0.01101746]
[1765965649818,0.01082057,86551.0,86549.0,0.07507]
[1765965650012,0.01082057,86550.0,86549.0,0.07507]
[1765965650419,0.01082057,86558.0,86549.0,0.10623]
[1765965650661,0.01082057,86557.0,86550.0,0.002]
[1765965650818,0.01082057,86556.0,86549.0,0.07507]
[1765965651031,0.01082057,86555.0,86549.0,0.07507]
[1765965651252,0.01082057,86554.0,86550.0,0.002]
[1765965651457,0.01082057,86553.0,86550.0,0.05248]
[1765965651661,0.01082057,86552.0,86550.0,0.062646]
[1765965651860,0.01082057,86551.0,86550.0,0.062646]
[1765965652380,0.01082057,86558.0,86550.0,0.062646]
[1765965652786,0.01082057,86558.0,86550.0,0.066646]
[1765965652991,0.01082057,86558.0,86550.0,0.05448]
[1765965653274,0.01082057,86558.0,86550.0,0.05648]
[1765965653519,0.02237351,86558.0,86550.0,0.05448]
[1765965653725,0.01082057,86557.0,86550.0,0.05448]
[1765965653935,0.02237365,86557.0,86550.0,0.05148]
[1765965654145,0.01155308,86557.0,86556.0,0.00034971]
[1765965654370,0.02237461,86557.0,86556.0,0.00034971]
[1765965654571,0.01082153,86557.0,86556.0,0.00034971]
[1765965655183,0.24188314,86557.0,86556.0,0.00034971]
[1765965655387,0.01082153,86557.0,86556.0,0.00034971]
[1765965655919,0.01082153,86557.0,86556.0,0.00334971]
[1765965656161,0.2907,86556.0,86550.0,0.04782971]
[1765965656373,0.01082153,86555.0,86550.0,0.04782971]
[1765965656581,0.01155361,86553.0,86550.0,0.002]
[1765965656784,0.2907,86549.0,86537.0,0.02859]
[1765965656954,0.2907,86549.0,86548.0,0.02193]
[1765965657253,0.2907,86549.0,86542.0,0.02580326]
[1765965658181,0.33907954,86552.0,86548.0,0.007]
[1765965658377,0.01082167,86551.0,86548.0,0.007]
[1765965658594,0.01082167,86550.0,86546.0,0.02176]
[1765965658942,0.53332802,86553.0,86546.0,0.02176]
[1765965659103,0.01082099,86552.0,86546.0,0.02176]
[1765965659845,0.02237473,86552.0,86546.0,0.02176]
[1765965660049,0.01082099,86551.0,86546.0,0.02176]
[1765965660369,0.01155428,86548.0,86546.0,0.002]
[1765965660527,0.30225414,86549.0,86546.0,0.005]
[1765965660731,0.53333941,86549.0,86546.0,0.005]
[1765965660928,0.30225414,86549.0,86546.0,0.002]
[1765965661136,0.30225414,86549.0,86542.0,0.02580326]
[1765965661337,0.30225414,86549.0,86546.0,0.003]
[1765965661570,0.24190739,86548.0,86546.0,0.006]
[1765965661726,0.30225401,86550.0,86546.0,0.003]
[1765965662069,0.01082115,86549.0,86546.0,0.006]
[1765965662621,0.01082115,86549.0,86548.0,0.03116]
[1765965662837,0.01082115,86549.0,86548.0,0.08164]
[1765965663271,0.01082215,86554.0,86549.0,0.02442]
[1765965663508,0.01082216,86553.0,86549.0,0.0749]
[1765965663730,0.01082216,86552.0,86549.0,0.0749]
[1765965663926,0.01082216,86551.0,86549.0,0.085199]
[1765965664206,0.01082216,86550.0,86549.0,0.085199]
[1765965664417,0.01082216,86550.0,86549.0,0.088199]
[1765965664624,0.01082216,86550.0,86549.0,0.02742]
[1765965664851,0.53260246,86550.0,86549.0,0.02742]
[1765965665074,0.02196,86543.0,86542.0,0.00011326]
[1765965665249,0.63650115,86543.0,86542.0,0.00011326]
[1765965665609,0.75196193,86543.0,86542.0,0.00011326]
[1765965666060,0.63650115,86543.0,86542.0,0.00011326]
[1765965666561,0.66762633,86543.0,86542.0,0.00011326]
[1765965667214,0.63650115,86543.0,86542.0,0.00011326]
[1765965667626,0.63650115,86543.0,86542.0,0.00055844]
[1765965668269,0.30225641,86532.0,86528.0,0.02240844]
[1765965668429,0.01155655,86531.0,86528.0,0.02240844]
[1765965668642,0.08192,86527.0,86526.0,0.00516]
[1765965668852,0.03192681,86529.0,86526.0,0.00516]
[1765965669047,0.23114124,86528.0,86526.0,0.00516]
[1765965669451,0.24269357,86529.0,86526.0,0.00516]
[1765965669859,0.24269357,86529.0,86528.0,0.001]
[1765965670051,0.24269357,86529.0,86526.0,0.00516]
[1765965670258,0.23114172,86527.0,86526.0,0.00516]
[1765965670466,0.52184172,86527.0,86526.0,0.00716]
[1765965670915,0.52184172,86527.0,86526.0,0.00516]
[1765965671132,0.52184172,86527.0,86526.0,0.00716]
[1765965671580,0.60376172,86527.0,86526.0,0.00516]
[1765965671747,0.55379172,86527.0,86526.0,0.00516]
[1765965671945,0.55379172,86527.0,86526.0,0.00816]
[1765965672769,0.55379172,86527.0,86526.0,0.01016]
[1765965673179,0.2907,86527.0,86526.0,0.00516]
[1765965673375,0.2907,86527.0,86526.0,0.10807]
[1765965677599,0.2907,86527.0,86526.0,0.11119]
[1765965677995,0.2907,86527.0,86526.0,0.11169893]
[1765965678518,0.2907,86527.0,86526.0,0.06462893]
[1765965680257,0.2907,86527.0,86526.0,0.00866893]
[1765965680804,0.52184172,86527.0,86526.0,0.00866893]
[1765965681011,0.2907,86527.0,86526.0,0.00866893]
[1765965681169,0.52184172,86527.0,86526.0,0.00866893]
[1765965682250,0.60376172,86527.0,86526.0,0.00866893]
[1765965682458,0.60537459,86527.0,86526.0,0.00866893]
[1765965683374,0.29231287,86527.0,86526.0,0.00866893]
[1765965683798,0.3368042,86527.0,86526.0,0.00866893]
[1765965683999,0.23114172,86527.0,86526.0,0.00866893]
[1765965684202,0.01155681,86529.0,86526.0,0.00866893]
[1765965684429,0.23114069,86528.0,86526.0,0.00816]
[1765965684838,0.24269822,86529.0,86526.0,0.00816]
[1765965685291,0.24269822,86529.0,86526.0,0.00716]
[1765965685734,0.24269822,86529.0,86526.0,0.00516]
[1765965685943,0.01155681,86529.0,86526.0,0.00516]
[1765965686182,0.01155681,86529.0,86526.0,0.00816]
[1765965686405,0.01155681,86529.0,86526.0,0.00716]
[1765965686569,0.23114172,86527.0,86526.0,0.00716]
[1765965687493,0.23114172,86527.0,86526.0,0.00516]
[1765965687686,0.23114172,86527.0,86526.0,0.00716]
[1765965687888,0.23114063,86528.0,86526.0,0.00716]
[1765965688051,0.02284,86529.0,86526.0,0.00716]
[1765965688256,0.03439681,86529.0,86526.0,0.00716]
[1765965688636,0.32509681,86529.0,86526.0,0.00816]
[1765965688902,0.55623537,86529.0,86526.0,0.00516]
[1765965689111,0.55623537,86529.0,86526.0,0.00716]
[1765965689288,0.24192442,86528.0,86526.0,0.00716]
[1765965689610,0.2907,86527.0,86526.0,0.00516]
[1765965690010,0.2907,86527.0,86526.0,0.00716]
[1765965690396,0.52184172,86527.0,86526.0,0.00516]
[1765965690819,0.52184172,86527.0,86526.0,0.00716]
[1765965691030,0.62488172,86527.0,86526.0,0.00716]
[1765965691187,0.63727991,86527.0,86526.0,0.00716]
[1765965691687,0.63727991,86527.0,86526.0,0.00816]
[1765965693000,0.63727991,86527.0,86521.0,0.0004]
[1765965693001,0.31307508,86522.0,86521.0,0.0004]
[1765965693203,0.04997,86505.0,86503.0,4.94919]
[1765965693406,1.27286806,86504.0,86503.0,4.86886]
[1765965693622,1.30187649,86504.0,86503.0,4.86886]
[1765965693793,1.33664682,86504.0,86503.0,4.86886]
[1765965694199,1.33664682,86504.0,86503.0,4.82832171]
[1765965694397,1.33664682,86504.0,86503.0,4.82116558]
[1765965694661,1.33664682,86504.0,86503.0,4.78062729]
[1765965694839,1.36529838,86504.0,86503.0,4.78062729]
[1765965695062,1.30553865,86504.0,86503.0,4.78062729]
[1765965695273,1.39648252,86504.0,86503.0,4.78062729]
[1765965695482,1.33454708,86504.0,86503.0,4.76887688]
[1765965695660,1.31053865,86504.0,86503.0,4.76887688]
[1765965695859,1.0797381,86504.0,86503.0,4.76887688]
[1765965696082,1.0426981,86504.0,86503.0,4.76887688]
[1765965696298,0.97982765,86504.0,86503.0,4.68287688]
[1765965696655,0.97682765,86504.0,86503.0,4.68287688]
[1765965696988,0.97982765,86504.0,86503.0,4.68287688]
[1765965697358,0.97582765,86504.0,86503.0,4.68287688]
[1765965697855,0.97882765,86504.0,86503.0,4.68287688]
[1765965699540,1.06357602,86504.0,86503.0,4.68287688]
[1765965699964,1.31317602,86504.0,86503.0,4.68287688]
[1765965700103,1.13170376,86504.0,86503.0,4.68287688]
[1765965701110,1.04695539,86504.0,86503.0,4.68287688]
[1765965701312,1.01609813,86504.0,86503.0,4.68287688]
[1765965701923,0.76649813,86504.0,86503.0,4.68287688]
[1765965702124,0.81651652,86504.0,86503.0,4.68287688]
[1765965702551,0.84552495,86504.0,86503.0,4.68287688]
[1765965702759,0.84552495,86504.0,86503.0,3.95430712]
[1765965702760,0.9957338,86504.0,86503.0,3.95430712]
[1765965702921,0.9774538,86504.0,86503.0,3.90583105]
[1765965703129,0.9774538,86504.0,86503.0,3.86526781]
[1765965703130,0.90514431,86504.0,86503.0,3.86526781]
[1765965703343,0.91118365,86504.0,86503.0,3.77926781]
[1765965703977,0.90818365,86504.0,86503.0,3.77926781]
[1765965704588,0.91218365,86504.0,86503.0,3.77926781]
[1765965705089,0.90818365,86504.0,86503.0,3.77926781]
[1765965705486,0.91118365,86504.0,86503.0,3.77926781]
[1765965705735,0.91109173,86504.0,86503.0,3.77926781]
[1765965709609,1.16069173,86504.0,86503.0,2.03545607]
[1765965709842,0.97085146,86504.0,86503.0,1.14690231]
[1765965710131,1.05448139,86504.0,86503.0,0.89385779]
[1765965710345,0.9970646,86504.0,86503.0,0.58952707]
[1765965710566,0.9970646,86504.0,86442.0,0.02584]
[1765965710567,0.89460968,86504.0,86442.0,0.02584]
[1765965710783,0.52206633,86443.0,86442.0,0.00172618]
[1765965711004,0.3196734,86443.0,86442.0,0.00172618]
[1765965711211,0.3196734,86443.0,86442.0,0.03409618]
[1765965711423,0.3196734,86443.0,86442.0,0.00172618]
[1765965711572,0.3196734,86443.0,86442.0,0.11063331]
[1765965711779,0.55103973,86443.0,86442.0,0.05932331]
[1765965711983,0.3196734,86443.0,86442.0,0.02695331]
[1765965712190,0.55103973,86443.0,86442.0,0.00111331]
[1765965712372,0.55103973,86443.0,86442.0,0.00011331]
[1765965712787,0.55103973,86443.0,86442.0,0.00211331]
[1765965713390,0.55103973,86443.0,86442.0,0.00511331]
[1765965713789,1.84808273,86443.0,86442.0,0.00211331]
[1765965714022,1.30237173,86443.0,86442.0,0.00211331]
[1765965714221,1.09378173,86443.0,86442.0,0.00211331]
[1765965714389,1.09478173,86443.0,86442.0,0.00411331]
[1765965714806,1.09478173,86443.0,86442.0,0.00011331]
[1765965714807,1.16838925,86443.0,86442.0,0.00011331]
[1765965715244,1.19677444,86443.0,86442.0,0.00411331]
[1765965715448,1.19677444,86443.0,86442.0,1e-08]
[1765965716049,1.19777444,86443.0,86416.0,0.0002]
[1765965716414,1.84114016,86427.0,86426.0,0.00045643]
[1765965716614,1.87011356,86427.0,86426.0,0.00045643]
[1765965716823,0.65744656,86427.0,86426.0,0.002909]
[1765965716955,0.67572656,86427.0,86426.0,0.002909]
[1765965717391,0.68383131,86427.0,86426.0,0.002909]
[1765965717605,0.68383131,86427.0,86421.0,0.00801375]
[1765965717606,0.23142255,86422.0,86421.0,0.00801375]
[1765965717807,0.53319261,86422.0,86421.0,0.00801375]
[1765965719139,0.55151261,86422.0,86421.0,0.00801375]
[1765965719348,0.53319261,86422.0,86421.0,0.00801375]
[1765965719569,0.55151261,86422.0,86421.0,0.00801375]
[1765965719778,0.30177006,86422.0,86421.0,0.01001375]
[1765965719993,0.01107006,86422.0,86421.0,0.09469375]
[1765965720205,0.02939006,86422.0,86421.0,0.09469375]
[1765965720424,0.02939006,86422.0,86421.0,0.09630662]
[1765965720668,0.01107006,86422.0,86421.0,0.10595728]
[1765965720880,0.01207006,86422.0,86421.0,0.10795728]
[1765965721128,0.00137666,86422.0,86421.0,0.10795728]
[1765965721790,0.00037666,86422.0,86421.0,0.10595728]
[1765965722008,0.00137666,86422.0,86421.0,0.10895728]
[1765965722474,0.00137666,86422.0,86421.0,0.10695728]
[1765965722885,0.00237666,86422.0,86421.0,0.11295728]
[1765965723852,0.00137666,86422.0,86421.0,0.10995728]
[1765965724314,0.00237666,86422.0,86421.0,0.11395728]
[1765965724818,0.00237666,86422.0,86421.0,0.16397567]
[1765965729798,0.00083622,86422.0,86421.0,0.14925567]
[1765965730110,0.00083622,86422.0,86421.0,0.19619567]
[1765965730610,4.54e-06,86441.0,86440.0,0.36461275]
[1765965730790,4.54e-06,86441.0,86440.0,0.47814803]
[1765965730989,4.54e-06,86441.0,86440.0,0.54810803]
[1765965732471,4.54e-06,86441.0,86440.0,0.55410803]
[1765965733508,0.00100454,86441.0,86440.0,0.56110803]
[1765965735549,0.02470262,86479.0,86478.0,0.08322]
[1765965735892,0.01832,86496.0,86495.0,0.1169]
[1765965736094,0.02904353,86496.0,86495.0,0.15318]
[1765965736301,0.01072353,86496.0,86495.0,0.15318]
[1765965736528,0.02903841,86502.0,86501.0,0.15318]
[1765965736728,0.02915153,86502.0,86501.0,0.08322]
[1765965736909,0.01156096,86498.0,86495.0,0.03628]
[1765965737136,0.01156096,86498.0,86497.0,0.04694]
[1765965737338,0.25349008,86500.0,86497.0,0.04694]
[1765965737539,0.30141401,86499.0,86497.0,0.1169]
[1765965737690,0.01071401,86498.0,86497.0,0.1169]
[1765965738280,0.01071401,86498.0,86497.0,0.1159]
[1765965738885,0.53363322,86498.0,86497.0,0.1159]
[1765965739304,0.30241401,86498.0,86497.0,0.1159]
[1765965740536,0.30241401,86498.0,86497.0,0.1169]
[1765965742255,0.2907,86498.0,86497.0,0.1169]
[1765965742458,0.2907,86498.0,86497.0,0.1159]
[1765965742669,0.29251454,86498.0,86497.0,0.1159]
[1765965742867,0.29251454,86498.0,86497.0,0.1169]
[1765965743544,0.00181454,86498.0,86497.0,0.132218]
[1765965744296,0.00181454,86498.0,86497.0,0.13283087]
[1765965744698,0.00181454,86498.0,86497.0,0.13383087]
[1765965745099,0.00181454,86498.0,86497.0,0.13283087]
[1765965745282,0.00181454,86498.0,86497.0,0.13383087]
[1765965745688,0.00181454,86498.0,86497.0,0.13483087]
[1765965745998,0.00181454,86498.0,86497.0,0.13683087]
[1765965746207,0.00181454,86498.0,86497.0,0.13483087]
[1765965746445,0.00181454,86498.0,86497.0,0.12251287]
[1765965747278,0.00181454,86498.0,86497.0,0.11951287]
[1765965747479,0.00181454,86498.0,86497.0,0.11751287]
[1765965747618,0.00181454,86498.0,86497.0,0.12051287]
[1765965747876,0.00181454,86498.0,86497.0,0.12251287]
[1765965748080,0.00181454,86498.0,86497.0,0.13639216]
[1765965748498,0.00181454,86498.0,86497.0,0.13839216]